Cogmind - Beta 13 *** ADVENTURER MODE // 2024.07.01 @ 18:35:19 Player: AntiGoose Result: Destroyed by as-20557 with Assembled Blade Performance ------------- Evolutions (0) 0 Regions Visited (2) 400 Robots Destroyed (6) 30 Value Destroyed (96) 96 Prototype IDs (0) 0 Alien Tech Used (0) 0 Bonus (0) 0 TOTAL SCORE: 526 Bonus ------- None Cogmind --------- Core Integrity 0/250 Matter 300/300 Energy 350/350 System Corruption 6% Temperature Cool (0) Movement Core (1400) Ox27 Location -10/Mines Parts ------- > --- POWER (1) -------- (None) > --- PROPULSION (2) --- (None) > --- UTILITY (2) ------ Huge Storage Unit High-capacity Battery > --- WEAPON (2) ------- (None) > --- INVENTORY (25) --- Light Ion Engine Hover Unit High-capacity Matter Pod (200) Compact Matter Pod (150) Signal Interpreter Weapon Shielding Tractor Beam Peak State ------------ > --- POWER ------------ Light Ion Engine > --- PROPULSION ------- Aluminum Leg Aluminum Leg > --- UTILITY ---------- High-capacity Battery Weapon Shielding > --- WEAPON ----------- Assault Rifle Light Assault Rifle > --- INVENTORY -------- Ion Engine Light Ion Engine Light Treads Hover Unit [Rating: 7] Favorites ----------- Power Light Ion Engine Engine Light Ion Engine Propulsion Aluminum Leg Leg Aluminum Leg Utility High-capacity Battery Storage High-capacity Battery Protection Weapon Shielding Weapon Assault Rifle Ballistic Gun Assault Rifle Build | -11 -10 -10 ------- Run | Yrd Mat Min Slots Evolved . | . . . Power . | . . . Propulsion . | . . . Utility . | . . . Weapon . | . . . Parts Attached 8 | 5 2 1 Power 1 | 1 . . Engine 1 | 1 . . Core . | . . . Reactor . | . . . Propulsion 2 | 2 . . Treads . | . . . Leg 2 | 2 . . Wheel . | . . . Hover . | . . . Flight . | . . . Utility 3 | . 2 1 Device . | . . . Storage 2 | . 1 1 Processor . | . . . Hackware . | . . . Protection 1 | . 1 . Artifact . | . . . Weapon 2 | 2 . . Energy Gun . | . . . Energy Cannon . | . . . Ballistic Gun 2 | 2 . . Ballistic Cannon . | . . . Launcher . | . . . Special Weapon . | . . . Impact Weapon . | . . . Slashing Weapon . | . . . Piercing Weapon . | . . . Special Melee Weapon . | . . . Unidentified Prototypes . | . . . Parts Lost 5 | . . 5 Power 1 | . . 1 Propulsion 2 | . . 2 Utility . | . . . Weapon 2 | . . 2 Highest Loss Streak 5 | . . 5 To Critical Strikes . | . . . Average Slot Usage (%) 96 | . 90 98 Engine 13 | . 14 13 Leg 27 | . 28 27 Storage 21 | . 5 27 Protection 4 | . 13 . Ballistic Gun 27 | . 28 27 Naked Turns . | . . . Heaviest Build 90 | 6 11 90 Greatest Support 20 | 20 20 20 Greatest Overweight (x) 29 | . . 29 Average Overweight (x) 1 | . . 3 Largest Inventory Capacity 25 | 5 5 25 Average Capacity 17 | 5 5 24 Most Carried 7 | 3 5 7 Average Carried 4 | . 2 6 Final Capacity 25 | 5 5 25 Final Carried 7 | 1 4 7 Class Distribution -------------------- 100% | Mutant Dominant Class ---------------- Mutant | -10/Materials Mutant | -10/Mines Resources | -11 -10 -10 ----------- Run | Yrd Mat Min Matter Collected 308 | 258 32 18 Remotely . | . . . Salvage Created 114 | 35 38 41 Parts 9 | 1 5 3 Haulers Intercepted . | . . . Recyclers Shooed . | . . . Parts Field Recycled . | . . . Retrieved Matter . | . . . Parts Self-Destructed . | . . . Prevented . | . . . Kills | -11 -10 -10 ------- Run | Yrd Mat Min Combat Hostiles Destroyed 4 | 1 . 3 Guns 4 | 1 . 3 Classes Destroyed 3 | 1 1 1 Watcher 2 | . 2 . Swarmer 3 | . . 3 Grunt 1 | 1 . . Best Kill Streak 2 | 1 1 2 Combat Bots Only 2 | 1 . 2 Max Kills in Single Turn 2 | 1 1 2 Gunslinging 1 | . . 1 Exploded . | . . . Melee . | . . . Uniques/NPCs Destroyed . | . . . Combat | -11 -10 -10 -------- Run | Yrd Mat Min Hostile Shots Fired 52 | 2 1 49 Missed 11 | . . 11 Damage Taken 755 | 17 8 730 Core 256 | . . 256 Absorbed by Shields . | . . . Redirected to Shielding 2 | . 2 . Ignored by Resistances 208 | 6 2 200 Core Remaining (%) 100 | 100 . . Volleys Fired 7 | 2 3 2 Largest 2 | 2 2 2 Hottest 40 | 40 40 40 Shots Fired 14 | 4 6 4 Gun 14 | 4 6 4 Cannon . | . . . Launcher . | . . . Special . | . . . Kinetic 14 | 4 6 4 Thermal . | . . . Explosive . | . . . Electromagnetic . | . . . Robot Hit Streak 6 | 3 3 6 Robot Miss Streak 1 | . 1 . Penetration Max . | . . . Secondary Targets 1 | . . 1 Max Gunslinging Chain 1 | . . 1 Shots Hit Robots 9 | 3 3 3 Core Hits 7 | 2 2 3 Critical Kills . | . . . Critical Parts Destroyed . | . . . Critical Strikes . | . . . Melee Attacks . | . . . Impact . | . . . Slashing . | . . . Piercing . | . . . Sneak Attacks . | . . . Combat Hostiles . | . . . Follow-up Attacks . | . . . Damage Inflicted 94 | 29 35 30 Guns 94 | 29 35 30 Cannons . | . . . Explosions . | . . . Melee . | . . . Ramming . | . . . Kinetic 94 | 29 35 30 Thermal . | . . . Explosive . | . . . Electromagnetic . | . . . Impact . | . . . Slashing . | . . . Piercing . | . . . Highest Corruption 6 | . . 6 Average Corruption 4 | . . 4 Corruption Purged . | . . . Corruption Blocked . | . . . Overload Shots . | . . . Overflow Damage . | . . . Projectiles . | . . . Explosions . | . . . Melee . | . . . Knockbacks . | . . . Impact . | . . . Kinetic . | . . . Secondary . | . . . Self-Inflicted Damage . | . . . Shots . | . . . Rammed . | . . . Targets Rammed . | . . . Kicked . | . . . Crushed . | . . . Highest Temperature 6 | 6 . . Average Temperature 6 | 6 . . Received Heat Transfer 38 | 12 6 20 Siege Activations . | . . . Robots Corrupted . | . . . Combat Hostiles . | . . . Parts Fried . | . . . Impact Corruptions . | . . . Robots Melted . | . . . Combat Hostiles . | . . . Parts Melted . | . . . Heat Transferred . | . . . Parts Sabotaged . | . . . Parts Stolen . | . . . Parts Stripped . | . . . Power Chain Reactions . | . . . Alert | -11 -10 -10 ------- Run | Yrd Mat Min Peak Influence 86 | 20 65 86 Initial 21 | . 11 21 Average 31 | 3 44 30 Maximum Alert Level . | . . . Low Security (%) 100 | 100 100 100 Level 1 . | . . . Level 2 . | . . . Level 3 . | . . . Level 4 . | . . . Level 5 . | . . . High Security . | . . . Max Security . | . . . Squads Dispatched 1 | . 1 . Investigation 1 | . 1 . Extermination . | . . . Reinforcement . | . . . Assault . | . . . Garrison . | . . . Intercept . | . . . Searches Triggered . | . . . Construction Impeded . | . . . Haulers Reinforced . | . . . Active Scanning Responses . | . . . Cargo Convoy Interrupts . | . . . Stealth | -11 -10 -10 --------- Run | Yrd Mat Min Distress Signals . | . . . Communications Jammed . | . . . Distress Signals . | . . . Times Spotted 21 | 1 4 16 Peak Tracking Total 6 | 1 2 6 Tactical Retreats 1 | . . 1 Traps | -11 -10 -10 ------- Run | Yrd Mat Min Traps Triggered 1 | . 1 . Indirectly . | . . . Trap Hack Attempts . | . . . Triggered . | . . . Disarmed . | . . . Reprogrammed . | . . . Reused . | . . . Traps Extracted . | . . . Installed . | . . . Triggered . | . . . Machines | -11 -10 -10 ---------- Run | Yrd Mat Min Machines Disabled . | . . . Max in Single Turn . | . . . Machines Repaired . | . . . Machines Dismantled . | . . . Machines Sabotaged . | . . . Overloaded Fab Kills . | . . . Hacking | -11 -10 -10 --------- Run | Yrd Mat Min Machines Accessed 2 | . 2 . Terminals 2 | . 2 . Fabricators . | . . . Repair Stations . | . . . Recycling Units . | . . . Scanalyzers . | . . . Garrison Access . | . . . Total Hacks 8 | . 8 . Successful 7 | . 7 . Failed 1 | . 1 . Catastrophic . | . . . Database Lockouts . | . . . Manual . | . . . Terminals 8 | . 8 . Fabricators . | . . . Repair Stations . | . . . Recycling Units . | . . . Scanalyzers . | . . . Garrison Access . | . . . Terminal Hacks 7 | . 7 . Record 7 | . 7 . Fabricator Hacks . | . . . Repair Station Hacks . | . . . Recycling Unit Hacks . | . . . Scanalyzer . | . . . Garrison Access Hacks . | . . . Unauthorized Hacks . | . . . Terminals . | . . . Fabricators . | . . . Repair Stations . | . . . Recycling Units . | . . . Scanalyzers . | . . . Garrison Access . | . . . Data Cores Recovered . | . . . Used . | . . . Hacking Detections 2 | . 2 . Full Trace Events . | . . . Feedback Events . | . . . Feedback Blocked . | . . . Robot Schematics Acquired . | . . . Robots Built . | . . . Authchips . | . . . Time . | . . . Total Robot Build Rating . | . . . Part Schematics Acquired . | . . . Parts Built . | . . . Authchips . | . . . Time . | . . . Total Part Build Rating . | . . . Parts Repaired . | . . . Time . | . . . Parts Recycled . | . . . Recycled Matter . | . . . Retrieved Matter . | . . . Retrieved Components . | . . . Parts Scanalyzed . | . . . Part Schematics Acquired . | . . . Parts Damaged . | . . . Bothacking | -11 -10 -10 ------------ Run | Yrd Mat Min Used RIF Installer . | . . . Robots Hacked . | . . . Non-combat . | . . . Combat . | . . . Robot Hacks Applied . | . . . Relay Couplers Released . | . . . Fabnet Peak Effective % . | . . . Robots Rewired . | . . . Allies Hacked . | . . . Hacks Repelled . | . . . Allies | -11 -10 -10 -------- Run | Yrd Mat Min Total Allies . | . . . Largest Group . | . . . Highest-Rated Group . | . . . Highest-Rated Ally . | . . . Total Orders . | . . . Ally Attacks . | . . . Total Damage . | . . . Kills . | . . . Allies Corrupted . | . . . Allies Melted . | . . . Intel | -11 -10 -10 ------- Run | Yrd Mat Min Robot Analysis Total . | . . . Derelict Logs Recovered 1 | . . 1 Drone Launches . | . . . Drone Recoveries . | . . . Exploration | -11 -10 -10 ------------- Run | Yrd Mat Min Turns Passed 1522 | 120 385 1017 Spaces Moved 664 | 94 304 266 Core 17 | 16 . 1 Treads . | . . . Legs 647 | 78 304 265 Wheels . | . . . Hover . | . . . Flight . | . . . Fastest Speed 50 | 50 120 120 Average Speed 222 | 108 120 378 Slowest Speed 1500 | 120 120 1500 Overloaded Moves . | . . . Propulsion Burnouts . | . . . Robots Hopped . | . . . Cave-ins Triggered . | . . . Exploration Rate (%) 28 | 7 38 40 Regions Visited 2 Branch Regions 1 Pre-discovered Areas . | . . . Known Exits Taken . | . . . Unknown Exits Taken 2 | 1 1 . Scrap Searched 1 | . . 1 Spaces Dug . | . . . Terrain Destroyed . | . . . Melee . | . . . Projectile . | . . . AOE . | . . . Terrain Rammed . | . . . Walls Destroyed . | . . . Machines Disabled . | . . . Actions | -11 -10 -10 --------- Run | Yrd Mat Min Total 706 | 109 320 277 Wait 7 | 3 1 3 Move 662 | 93 303 266 Hop . | . . . Pick Up 18 | 6 8 4 Fast Attach . | . . . Attach 8 | 5 2 1 Detach . | . . . Swap . | . . . Drop 4 | . 3 1 Fire 7 | 2 3 2 Melee . | . . . Ram . | . . . Kick . | . . . Crush . | . . . Escape Stasis . | . . . Rewire . | . . . Trap . | . . . Miscellaneous . | . . . Route ------- -11/Scrapyard -10/Materials -10/Mines (discovered 2 exits: [*Mat] / [*Sub]) History --------- Turn | Location | Event 2 | -11/Scrapyard | Met Revision 17 96 | -11/Scrapyard | Discovered new exit (range 8) 121 | -11/Scrapyard | Entered Materials 306 | -10/Materials | Build established: Mutant 381 | -10/Materials | Discovered new exit (range 13) 506 | -10/Materials | Entered Mines 532 | -10/Mines | Discovered new exit (range 10) 535 | -10/Mines | Met a Derelict bent on vengeance 952 | -10/Mines | Learned location of 1 exit from Materials 1168 | -10/Mines | Discovered new exit (range 10) 1456 | -10/Mines | Assembled infested the area 1512 | -10/Mines | Core integrity fell below 50% 1523 | -10/Mines | Core integrity fell below 20% 1523 | -10/Mines | Destroyed by as-20557 with Assembled Blade Last Messages --------------- The unstable cave ceiling collapses. Aluminum Leg destroyed. System corrupted by crushing effect (+4). The unstable cave ceiling collapses. U-05 Engineer lays Concrete. The unstable cave ceiling collapses. U-05 Engineer builds a Wall. Aluminum Leg destroyed. The unstable cave ceiling collapses. Knocked back. U-05 Engineer builds a Wall. The unstable cave ceiling collapses. DY-YUQ(g): "I WILL HAVE VENGEANCE!" Lgt. Ion Engine destroyed. U-05 Engineer lays Concrete. U-05 Engineer builds a Wall. Assault Rifle destroyed. System corrupted by crushing effect (+2). The unstable cave ceiling collapses. U-05 Engineer builds a Wall. Map ----- +----------------------------------------------------+ | ?????????????????????????????????????????????????? | | ?????????????????????????????????????????????????? | | ?????????????????????????????????????????????????? | | ?????????????????????????????????????????????????? | | ?????????????????????????????????????????????????? | | ?????????????????????????????????????????????????? | | ?????????????????????????????????????????????????? | | ?????????????????????????????????????????????????? | | ?????????????????????????????????????????????????? | | ?????????????????????????????????????????????????? | | ?????????????????????????????????????????????????? | | ?????????????????????????????????????????????????? | | ?????????????????????????????????????????????????? | | ?????????????????????????????????????????????????? | | ?????????????????????????????????????????????????? | | ????????????????????????#########????????????????? | | ???????????????????????## #????????????????? | | ??????????????????????## #### #???????????? | | ?????????????????????## #???????????? | | ????????????????????## #####????????????? | | ????????????????????# ## # #????????????????? | | ????????????????????## a # #????????????????? | | ????????????????????# # #????????????????? | | ????????????????????# # ##????????????????? | | ????????????????????## #aa ##?????????????????? | | ?????????????????????# ##@a#########?????????????? | | ?????????????????????### ua u #?????????????? | | ???????????????????????# #?????????? | | ???????????????????????# ####### #???????? | | ???????????????????????# #??????? ??????? | | ???????????????????????# #????????? ??????? | | ???????????????????????# #?????????? ??? ???????? | | ???????????????????????# #??????????????????????? | | ???????????????????????# #??????????????????????? | | ?????????????????####### ##?????????????????????? | | ????????????????## ## #?????????????????????? | | ????????????????# ##?????????????????????? | | ???????????????## ##??????????????????????? | | ??????????????## ####???????????????????????? | | ??????????????# #% #??????????????????????????? | | ??????????????# ## #??????????????????????????? | | ?????????###?## ## #??????????????????????????? | | ?????????# ## ### #??????????????????????????? | | ?????????# ### ################???????????? | | ?????????## ## #???????????? | | ??####????## ## ####### ##### #???????????# | | ?## ##????# # #?????# #???#%#???????????# | | ?# #????# # #?????#%##??#%#???######### | | ?# #????# ## #????## %##?# #???# | | ??# #????## ### ##???# ### #???# | +----------------------------------------------------+ Best States ------------- Heat Dissipation 25 Energy Generation 10 Energy Capacity 375 Matter Stores 300 Matter Capacity 300 Sight Range 16 Terrain Scan Density 10 Resistance: KI 20 Resistance: TH 20 Resistance: EX 20 Resistance: EM 20 Resistance: I 20 Resistance: S 20 Resistance: P 20 Weapon Shielding 33 Evasion (%) 55 Offensive Hacking 10 Item Schematics ----------------- None Robot Schematics ------------------ None Fabricated ------------ Nothing Alien Tech Used ----------------- None Achievements -------------- None Challenges ------------ None Game ------ Seed ShadingMicrowarpSheargun Manual? 0 Play Time 00:12:12 Cumulative 1.3 hours Start 2024.07.01 @ 14:52:08 End 2024.07.01 @ 18:35:19 Sessions 2 Manual Loads 0 Difficulty Adventurer Special Mode None Game No. 3 Rogue 0 Adventurer 3 Explorer 0 Win Type - Total 0 Types 0/0/0/0/0/0/0/0/0 Lore% 4 Gallery% 4 Achievement% 4 Wizard Run 0 Options --------- Layout 1 ASCII 0 Keyboard 0 Movement Mouse Keybinds 0 Fullscreen 1 Font 32/SmallcapsGlow Map View 50x35 Zoom Use 0% Tactical HUD 0 Map Filters NONE Filters NONE Steam 1 RUN: 1aaccc24-e141-49be-8639-5c1852ae1e71